bitfinex-derivatives/quotes_ETHF0:USTF0_20260204
["timestamp","ask_amount","ask_price","bid_price","bid_amount"]
[1770163415550,0.00324862,2228.4,2227.6,2.38235384]
[1770163416147,2.635,2229.1,2227.8,2.37699289]
[1770163416448,5.03268257,2229.1,2227.8,2.37699289]
[1770163417045,5.03268257,2229.1,2227.8,2.60177289]
[1770163417241,0.0044383,2229.1,2227.8,5.25870077]
[1770163417441,0.0044383,2229.1,2227.9,2.37699289]
[1770163417645,2.40212087,2229.1,2227.9,2.37699289]
[1770163419950,0.0044383,2229.1,2228.0,2.60175289]
[1770163420250,2.40212087,2229.1,2228.0,2.60175289]
[1770163420848,0.0044383,2229.1,2228.0,5.25868077]
[1770163421152,0.0044383,2229.1,2228.3,2.37699289]
[1770163421451,0.0044383,2229.1,2228.4,2.37699289]
[1770163421653,2.39768257,2229.7,2228.4,2.37699289]
[1770163421954,2.39768257,2229.7,2228.4,2.60171289]
[1770163422749,2.62589834,2229.7,2228.4,2.37699289]
[1770163423653,2.62589834,2229.7,2228.4,1.93897246]
[1770163423855,2.40130834,2229.7,2228.4,2.16369246]
[1770163424353,2.40130834,2229.7,2228.1,2.65692788]
[1770163424550,2.40130834,2229.7,2228.0,5.40592788]
[1770163424755,2.39768257,2229.3,2227.9,0.22476]
[1770163425047,0.00362577,2229.7,2227.6,5.32602359]
[1770163425048,2.62235257,2228.9,2227.6,2.66228883]
[1770163425252,2.62235257,2228.9,2227.6,0.00536095]
[1770163426054,2.39768257,2228.1,2226.8,2.37699289]
[1770163426252,2.39768257,2227.9,2226.5,2.37699289]
[1770163426553,2.39768257,2227.7,2226.5,2.37699289]
[1770163427149,2.40146691,2227.7,2226.5,2.38046313]
[1770163428953,0.00378434,2227.7,2226.7,5.0478118]
[1770163429254,0.00378434,2227.7,2226.8,2.37699289]
[1770163429449,0.00378434,2227.7,2226.9,2.37699289]
[1770163429654,2.39768257,2228.3,2227.0,2.37699289]
[1770163429853,2.39768257,2228.3,2227.1,2.37699289]
[1770163430550,2.34984432,2228.0,2226.7,2.67081891]
[1770163430759,2.34984432,2228.0,2226.6,2.52828505]
[1770163431054,2.34984432,2227.8,2226.6,2.52828505]
[1770163432354,0.22479,2227.7,2226.5,0.00347024]
[1770163432557,2.34984432,2227.6,2226.5,0.00347024]
[1770163433260,2.34984432,2227.6,2226.5,2.53175529]
[1770163433657,2.34984432,2227.6,2226.5,2.09334684]
[1770163434057,2.57464432,2227.6,2226.2,2.84]
[1770163434560,2.57464432,2227.6,2226.2,2.84354866]
[1770163434863,2.34984432,2227.6,2226.2,5.73930757]
[1770163435560,2.34984432,2227.6,2226.3,2.3056184]
[1770163436755,2.38106697,2227.4,2226.2,0.00354866]
[1770163437662,2.60588697,2227.4,2226.2,0.00354866]
[1770163438959,2.60588697,2227.4,2226.2,2.30916706]
[1770163440458,2.38106697,2227.9,2226.5,2.3056184]
[1770163440661,2.38106697,2228.2,2227.0,2.3056184]
[1770163440856,0.00422,2228.3,2227.2,2.3056184]
[1770163441060,0.00422,2228.3,2227.4,2.3056184]
[1770163441257,2.38106697,2228.1,2226.8,2.3056184]
[1770163441461,2.38106697,2228.1,2226.5,4.97643731]
[1770163441662,0.22483,2227.3,2226.2,0.00354866]
[1770163441858,2.38106697,2226.9,2225.7,2.3056184]
[1770163442965,2.38106697,2226.9,2225.7,2.30938067]
[1770163444061,2.38106697,2226.9,2225.7,0.00376227]
[1770163444261,7.128,2227.7,2226.1,2.3056184]
[1770163444262,2.38106697,2227.5,2226.1,2.3056184]
[1770163444965,2.38106697,2227.5,2225.8,2.3056184]
[1770163445159,2.38106697,2226.6,2225.7,0.00376227]
[1770163445359,2.38106697,2226.4,2225.0,2.3056184]
[1770163445560,2.38106697,2226.2,2224.6,2.3056184]
[1770163446264,2.38106697,2226.2,2224.6,2.31048039]
[1770163446466,2.38106697,2226.2,2224.8,2.3056184]
[1770163448865,2.38106697,2226.2,2224.6,0.00486199]
[1770163449170,2.38106697,2225.7,2224.6,0.00486199]
[1770163449967,2.38106697,2225.7,2224.6,2.31048039]
[1770163450667,2.38106697,2226.3,2225.0,2.5306784]
[1770163450970,2.38106697,2226.3,2225.2,2.3056184]
[1770163451269,2.38432328,2226.6,2225.4,2.3056184]
[1770163451667,2.38432328,2226.6,2224.6,3.98157114]
[1770163451873,2.60603697,2225.9,2224.6,0.00486199]
[1770163452667,2.38106697,2225.9,2224.7,2.5307084]
[1770163453171,2.38106697,2225.9,2224.7,2.3056184]
[1770163453573,2.38106697,2225.9,2224.6,0.00486199]
[1770163453871,2.60603697,2225.9,2224.6,0.00486199]
[1770163454770,2.38106697,2225.9,2224.6,2.31048039]
[1770163455168,2.38106697,2226.3,2225.1,2.3056184]
[1770163456973,2.38106697,2226.3,2225.3,2.3056184]
[1770163457269,0.00325631,2226.6,2225.5,2.3056184]
[1770163457467,0.00325631,2226.6,2225.7,2.3056184]
[1770163458477,2.38106697,2227.2,2225.9,2.5305884]
[1770163459476,2.3853892,2227.2,2225.9,2.5305884]
[1770163460677,2.3853892,2227.2,2226.0,2.51057876]
[1770163460872,2.3853892,2227.2,2226.0,2.73553876]
[1770163461274,0.00432223,2227.2,2226.2,2.73551876]
[1770163461476,2.30855399,2228.0,2226.7,2.73546876]
[1770163461677,2.30855399,2228.0,2226.9,2.51057876]
[1770163461973,2.30855399,2227.8,2226.2,3.98227824]
[1770163462178,2.30855399,2227.6,2226.2,0.00556909]
[1770163462478,2.31326381,2227.6,2226.2,0.00556909]
[1770163462974,2.30855399,2226.8,2225.4,13.13811622]
[1770163463177,2.30855399,2226.7,2225.4,2.51057876]
[1770163463375,2.30855399,2226.7,2225.1,3.97670915]
[1770163463580,2.30855399,2226.7,2225.1,2.51057876]
[1770163463773,5.56095305,2226.4,2224.9,3.97670915]
[1770163463979,2.30855399,2226.3,2224.8,2.73565876]
[1770163464282,2.30855399,2226.3,2224.8,2.74101419]
[1770163464876,2.30855399,2226.3,2225.0,2.51057876]
[1770163465083,2.30855399,2226.3,2225.0,2.73563876]
[1770163465880,2.30855399,2226.3,2225.2,2.51057876]
[1770163466181,2.30855399,2226.7,2225.2,2.51057876]
[1770163467483,7.64458704,2226.7,2225.2,2.51057876]
[1770163467685,2.30855399,2226.6,2225.2,2.51057876]
[1770163468580,2.30855399,2226.4,2225.2,2.51057876]
[1770163469687,2.30855399,2226.7,2225.4,2.51057876]
[1770163469984,2.30855399,2226.7,2225.4,2.73559876]
[1770163471087,2.30855399,2226.6,2225.4,2.51057876]
[1770163471484,2.30855399,2226.5,2225.4,2.51057876]
[1770163472681,2.30855399,2226.3,2225.1,2.51057876]
[1770163472882,2.30855399,2225.7,2224.8,0.00535543]
[1770163473089,2.31198481,2225.7,2224.3,2.51057876]
[1770163473286,2.30855399,2225.6,2224.3,2.51057876]
[1770163473687,0.00343082,2225.7,2224.3,2.51057876]
[1770163473990,0.00343082,2225.7,2225.0,2.51057876]
[1770163474888,0.00343082,2225.7,2224.4,4.20182915]
[1770163474889,0.00343082,2225.7,2224.5,2.51057876]
[1770163475290,2.31198481,2225.7,2224.5,2.51057876]
[1770163475689,2.31198481,2225.7,2224.6,2.51057876]
[1770163476390,0.00343082,2225.7,2224.6,2.51057876]
[1770163477187,0.00343082,2225.7,2224.8,2.51057876]
[1770163477491,0.00343082,2225.7,2224.8,2.73565876]
[1770163477988,5.56094305,2226.5,2225.0,2.51057876]
[1770163478290,2.30855399,2226.4,2225.0,2.51057876]
[1770163478490,2.30855399,2226.4,2225.0,2.73563876]
[1770163478887,2.30855399,2226.7,2225.2,2.73561876]
[1770163479083,2.3136245,2226.7,2225.2,2.73561876]
[1770163480493,2.3136245,2226.7,2225.2,6.86166142]
[1770163480793,2.3136245,2226.7,2225.3,2.51057876]
[1770163481389,2.3136245,2226.7,2225.0,6.48728791]
[1770163481595,2.30855399,2226.3,2225.0,2.51057876]
[1770163482493,2.30855399,2226.3,2225.1,2.51057876]
[1770163482799,2.30855399,2226.6,2225.4,2.51057876]
[1770163484101,2.30855399,2225.9,2224.7,2.51057876]
[1770163484401,7.64458704,2226.2,2225.0,2.51057876]
[1770163484597,0.00507051,2226.7,2225.4,2.51057876]
[1770163484797,0.00507051,2226.7,2225.6,2.51057876]
[1770163484999,0.00507051,2226.7,2225.6,6.63939542]
[1770163485205,0.00507051,2226.7,2225.8,2.51057876]
[1770163485400,0.00507051,2226.7,2226.0,2.51057876]
[1770163485705,7.64458704,2227.5,2226.0,2.73876956]
[1770163485905,2.30855399,2227.5,2226.2,2.51057876]
[1770163486098,5.33603305,2227.7,2226.6,2.51057876]
[1770163486303,2.30855399,2228.4,2227.0,2.51057876]
[1770163486504,2.30855399,2228.4,2227.2,2.51057876]
[1770163486701,2.31383584,2228.4,2227.2,2.51057876]
[1770163487101,2.31383584,2228.4,2227.3,0.22483]
[1770163487102,0.00528185,2228.4,2227.3,0.22483]
[1770163487300,0.00528185,2228.4,2227.5,2.51057876]
[1770163488099,2.31383584,2228.4,2227.5,2.51057876]
[1770163488804,0.00528185,2228.4,2227.5,2.51057876]
[1770163490304,2.31383584,2228.4,2227.4,2.848]
[1770163490500,2.31383584,2228.4,2227.2,2.51057876]
[1770163492001,0.00528185,2228.4,2227.2,2.73541876]
[1770163492202,2.45394985,2229.1,2227.6,2.50478728]
[1770163492405,2.45394985,2229.5,2228.0,2.72954728]
[1770163492710,2.45394985,2230.0,2228.2,2.50478728]
[1770163493104,2.45911675,2230.0,2228.2,2.50821906]
[1770163493306,2.45394985,2229.7,2228.2,2.50821906]
[1770163493510,2.67853985,2229.7,2228.2,2.50821906]
[1770163493705,2.45394985,2229.3,2228.2,0.00343178]
[1770163495309,2.45394985,2229.3,2228.2,2.36024227]
[1770163495616,2.45394985,2229.3,2228.2,0.00343178]
[1770163497113,2.45394985,2229.3,2228.2,2.36024227]
[1770163498012,2.45394985,2229.3,2228.2,0.00343178]
[1770163499712,2.67857985,2229.3,2228.2,0.00343178]
[1770163499916,2.43632612,2229.1,2228.2,0.00343178]
[1770163500414,2.43632612,2228.6,2226.9,2.35681049]
[1770163500719,2.66104612,2228.4,2226.9,2.35681049]
[1770163501017,5.56065305,2229.4,2227.2,2.35681049]
[1770163501216,2.43632612,2229.3,2228.1,2.35681049]
[1770163501418,2.44077587,2229.3,2228.3,2.35681049]
[1770163501813,0.22465,2229.1,2228.1,0.00514236]
[1770163502114,2.44077587,2229.3,2227.8,2.35681049]
[1770163502816,2.43632612,2229.1,2227.8,2.35681049]
[1770163503016,2.43632612,2229.1,2227.8,0.00388836]
[1770163503821,2.43632612,2228.7,2227.8,0.00388836]
[1770163504019,2.43632612,2228.7,2227.8,2.36069885]
[1770163504517,2.43632612,2228.7,2227.8,0.00388836]
[1770163504719,2.43632612,2228.5,2227.0,2.58167049]
[1770163505618,2.43632612,2228.5,2227.0,2.58633958]
[1770163507118,2.43632612,2228.8,2227.2,2.35681049]
[1770163507322,2.43632612,2228.8,2227.6,2.35681049]
[1770163507723,2.43632612,2228.8,2227.5,0.22481]
[1770163507920,2.43632612,2228.8,2227.3,2.35681049]
[1770163508120,2.43632612,2228.6,2227.0,2.58633958]
[1770163509323,2.43632612,2228.6,2227.2,2.58165049]
[1770163510521,2.43632612,2228.6,2227.0,2.36147958]
[1770163510822,2.43632612,2228.0,2227.0,0.00466909]
[1770163511214,2.43632612,2228.0,2227.0,2.36147958]
[1770163513528,2.43632612,2228.4,2227.0,2.36147958]
[1770163514427,2.43632612,2228.3,2227.0,2.36147958]
[1770163515628,2.43632612,2228.2,2227.0,2.36147958]
[1770163516824,6.92832612,2228.5,2227.2,2.35681049]
[1770163517630,7.77235917,2228.3,2227.0,0.00466909]
[1770163517831,2.43632612,2228.2,2227.0,0.00466909]
[1770163518825,2.43632612,2228.2,2227.0,2.36147958]
[1770163520935,7.77235917,2228.2,2227.0,0.00466909]
[1770163521135,2.44024484,2228.1,2227.0,0.00466909]
[1770163521433,2.44024484,2228.1,2227.0,2.33020928]
[1770163521629,2.44024484,2228.1,2227.1,0.22484]
[1770163521931,2.44024484,2228.1,2227.0,0.00466909]
[1770163522534,2.44024484,2228.1,2227.0,2.33020928]
[1770163523135,2.44024484,2228.1,2227.0,0.00466909]
[1770163523334,2.44024484,2228.1,2227.0,2.33020928]
[1770163524035,2.44024484,2228.1,2227.0,0.00466909]
[1770163524335,2.44024484,2228.0,2227.0,0.00466909]
[1770163524530,8.00105789,2227.8,2226.3,2.32554019]
[1770163524835,8.00105789,2227.8,2226.0,5.32066264]
[1770163524836,2.44024484,2227.5,2226.0,7.80486168]
[1770163525034,2.44024484,2227.5,2226.1,4.12756902]
[1770163525237,2.44024484,2227.5,2226.1,2.32554019]
[1770163525737,2.44394217,2227.5,2226.1,2.32985265]
[1770163526430,2.44394217,2227.5,2226.2,0.22494]
[1770163526739,0.00369733,2227.5,2226.5,2.32554019]
[1770163527138,0.00369733,2227.5,2226.8,2.55042019]
[1770163527338,2.44024484,2228.1,2226.9,2.32554019]
[1770163527532,2.44024484,2228.1,2227.0,2.32554019]
[1770163527737,2.44024484,2228.1,2226.9,2.55041019]
[1770163528436,2.44551201,2228.1,2226.9,2.55041019]
[1770163529735,0.00526717,2228.1,2227.2,2.32554019]
[1770163529936,2.44024484,2228.7,2227.6,2.55034019]
[1770163530136,2.44024484,2228.7,2227.7,4.96054019]
[1770163530441,2.44024484,2228.7,2227.4,2.32554019]
[1770163530740,2.44024484,2228.7,2227.4,5.16654019]
[1770163530941,2.44381058,2228.7,2227.4,5.17098129]
[1770163531738,2.44381058,2228.7,2227.4,5.17298129]
[1770163533138,2.44024484,2228.6,2227.4,5.17298129]
[1770163533341,2.44024484,2228.5,2227.4,2.32998129]
[1770163533541,2.44024484,2228.5,2227.5,2.32554019]
[1770163534638,2.44024484,2228.5,2227.4,2.8504411]
[1770163535142,2.44024484,2228.5,2227.4,5.17598129]
[1770163535634,2.44024484,2228.5,2227.4,2.32998129]
[1770163535834,2.44024484,2228.5,2227.4,5.17998129]
[1770163536341,0.00356574,2228.7,2227.5,2.55035019]
[1770163536537,2.44381058,2228.7,2227.5,6.69074192]
[1770163536737,2.44381058,2228.7,2227.6,2.32554019]
[1770163537444,2.44024484,2228.6,2227.7,2.32554019]
[1770163538345,2.44024484,2228.6,2227.6,2.854]
[1770163538644,2.44024484,2228.6,2227.5,0.2248]
[1770163538845,2.44024484,2228.6,2227.6,2.854]
[1770163539444,6.55137125,2229.3,2228.2,2.32554019]
[1770163539644,0.22463,2229.3,2227.8,4.95954019]
[1770163539841,6.55137125,2229.3,2227.9,2.32554019]
[1770163540043,6.55137125,2229.4,2227.9,2.32554019]
[1770163540342,0.00413318,2229.4,2227.9,2.55031019]
[1770163540538,0.00413318,2229.4,2228.3,2.55026019]
[1770163540845,0.00413318,2229.4,2228.5,2.32554019]
[1770163541047,0.00413318,2229.4,2228.6,2.32554019]
[1770163542646,2.44024484,2230.1,2228.8,0.22468]
[1770163542945,2.44024484,2230.1,2228.8,2.634]
[1770163543441,2.66482484,2229.8,2228.0,2.32554019]
[1770163543641,2.44024484,2229.5,2228.0,2.32554019]
[1770163546448,2.44024484,2229.5,2228.3,2.32554019]
[1770163550355,2.66487484,2229.3,2227.7,2.55033019]
[1770163551556,2.34546259,2229.1,2227.7,2.55033019]
[1770163552252,2.34546259,2228.7,2227.4,2.471399]
[1770163552453,2.34546259,2228.3,2227.4,0.0044411]
[1770163552658,2.34546259,2228.7,2227.4,2.471399]
[1770163552852,2.34546259,2228.7,2227.4,2.696209]
[1770163553057,2.34546259,2228.7,2227.6,2.4669579]
[1770163553258,2.34546259,2228.7,2227.8,2.4669579]
[1770163553459,2.34546259,2228.7,2227.5,2.4669579]
[1770163558864,2.51304946,2229.0,2228.0,2.40216751]
[1770163559955,2.51304946,2229.0,2227.7,2.40216751]
[1770163560262,2.51304946,2228.7,2227.4,2.40660861]
[1770163560662,2.51304946,2228.6,2227.4,2.40660861]
[1770163562366,2.51304946,2228.6,2227.4,0.0044411]
[1770163562664,2.51304946,2228.5,2227.4,0.0044411]
[1770163562862,2.51304946,2228.4,2227.4,0.0044411]
[1770163563562,2.51304946,2228.4,2227.4,2.40660861]
[1770163569267,6.77607125,2228.6,2227.4,2.40660861]
[1770163569268,6.55137125,2228.6,2227.6,2.40216751]
[1770163569565,2.51304946,2228.8,2227.6,2.62695751]
[1770163569765,2.51304946,2229.1,2227.8,2.40216751]
[1770163570070,2.73771946,2228.9,2227.6,2.40216751]
[1770163570966,2.51304946,2228.8,2227.6,2.40216751]
[1770163571471,2.51304946,2228.8,2227.6,2.62695751]
[1770163571871,2.51304946,2228.8,2227.8,2.40216751]
[1770163572071,2.51304946,2229.0,2227.8,2.40216751]
[1770163572568,9.06442071,2229.3,2228.0,2.40216751]
[1770163572771,2.51304946,2229.6,2228.4,2.40216751]
[1770163573269,2.51304946,2229.6,2228.4,2.62688751]
[1770163574869,0.0051269,2229.8,2228.4,2.62688751]
[1770163575167,0.0051269,2229.8,2229.0,2.40216751]
[1770163575373,0.0051269,2229.8,2229.0,2.40772483]
[1770163576675,0.0051269,2229.8,2229.0,5.24772483]
[1770163576871,0.0051269,2229.8,2229.1,2.40216751]
[1770163580778,2.53038251,2229.8,2229.0,0.00555732]
[1770163581281,2.52525561,2229.7,2228.5,2.50969049]
[1770163582179,2.52525561,2229.3,2228.1,2.50969049]
[1770163582879,2.52525561,2229.3,2227.8,2.50969049]
[1770163583080,2.52525561,2229.2,2227.8,2.50969049]
[1770163583378,2.52525561,2229.2,2227.8,2.51496316]
[1770163585474,2.52525561,2229.1,2227.8,2.51496316]
[1770163585676,2.52525561,2228.5,2226.9,2.89483295]
[1770163585882,2.52525561,2227.8,2226.9,2.50969049]
[1770163586377,2.52525561,2227.4,2226.0,2.50969049]
[1770163586973,2.52915579,2227.4,2226.0,2.51393772]
[1770163587783,2.52525561,2227.0,2226.0,2.51393772]
[1770163590086,2.52525561,2227.3,2226.0,2.51393772]
[1770163590486,0.00390018,2227.4,2226.0,2.51393772]
[1770163590987,2.52525561,2227.3,2226.0,2.51393772]
[1770163591486,0.00390018,2227.4,2226.2,2.50969049]
[1770163592283,0.00390018,2227.4,2226.5,2.73460049]
[1770163593686,2.52525561,2228.2,2226.9,2.50969049]
[1770163594883,2.53075652,2228.2,2226.9,2.50969049]
[1770163595183,2.53075652,2228.2,2226.9,2.73456049]
[1770163595787,0.00550091,2228.2,2227.1,2.50969049]
[1770163596088,0.00550091,2228.2,2226.7,2.50969049]
[1770163596089,2.53075652,2228.2,2226.7,2.50969049]
[1770163596487,2.53075652,2228.2,2226.7,2.73458049]
[1770163597390,0.00550091,2228.2,2227.1,0.22485]
[1770163597585,2.53075652,2228.2,2227.2,2.50969049]
[1770163600293,0.00550091,2228.2,2227.2,2.50969049]
[1770163601089,0.00550091,2228.2,2227.4,2.73451049]
[1770163601295,2.52525561,2228.8,2227.6,2.50969049]
[1770163602088,5.18849462,2229.1,2227.6,2.73449049]
[1770163602291,2.52964459,2229.1,2227.8,2.73446049]
[1770163602492,0.00438898,2229.1,2228.0,2.50969049]
[1770163602796,0.00438898,2229.1,2228.0,2.73445049]
[1770163603392,0.00438898,2229.1,2228.2,2.50969049]
[1770163603597,2.52525561,2229.7,2228.4,2.73441049]
[1770163603894,2.52525561,2230.1,2228.6,2.50969049]
[1770163604192,2.52525561,2230.1,2228.7,2.50969049]
[1770163604392,2.52525561,2230.4,2228.7,2.50969049]
[1770163604597,2.5309589,2230.4,2228.9,2.73436049]
[1770163604996,2.5309589,2230.4,2229.2,2.50969049]
[1770163605197,2.5309589,2230.4,2229.2,2.5148192]
[1770163605398,0.00570329,2230.4,2229.2,2.5148192]
[1770163605798,0.00570329,2230.4,2229.5,2.50969049]
[1770163605993,0.00570329,2230.4,2229.6,2.50969049]
[1770163606200,2.52525561,2231.1,2229.6,2.50969049]
[1770163606996,2.52525561,2231.4,2229.9,2.50969049]
[1770163607202,0.00460143,2231.1,2229.9,2.50969049]
[1770163607403,0.00460143,2231.1,2229.9,2.73426049]
[1770163608298,0.00460143,2231.1,2230.1,2.50969049]
[1770163608502,2.52525561,2231.7,2230.1,2.50969049]
[1770163608804,2.52525561,2231.7,2230.3,2.50969049]
[1770163608997,2.52525561,2231.7,2230.4,2.50969049]
[1770163609401,2.53076969,2231.7,2230.4,2.50969049]
[1770163610197,2.52525561,2231.5,2230.4,2.50969049]
[1770163611601,0.00551408,2231.7,2230.4,2.50969049]
[1770163611802,0.00551408,2231.7,2230.0,2.633]
[1770163611803,0.00551408,2231.7,2230.7,2.32617439]
[1770163612004,2.48860187,2231.7,2230.7,2.32617439]
[1770163612704,0.00551408,2231.7,2230.7,2.32617439]
[1770163614509,2.48860187,2231.7,2230.7,2.32617439]
[1770163615011,2.48860187,2231.7,2230.4,2.55068439]
[1770163616905,2.48860187,2231.7,2230.4,5.18268439]
[1770163617111,2.48860187,2231.7,2230.5,2.4674835]
[1770163619004,2.48860187,2231.7,2230.2,2.4674835]
[1770163619203,2.31637481,2231.3,2229.9,2.6920435]
[1770163619402,2.31637481,2231.3,2229.9,2.4674835]
[1770163620508,2.31637481,2231.1,2229.6,2.4674835]
[1770163620714,2.31637481,2231.0,2229.3,2.4674835]
[1770163621014,2.31637481,2230.8,2229.3,2.4674835]
[1770163621805,2.31637481,2230.8,2229.7,2.4674835]
[1770163622512,2.31637481,2231.2,2230.1,2.4674835]
[1770163624909,2.31637481,2231.5,2230.3,2.4674835]
[1770163626712,2.31637481,2231.5,2230.3,2.6920135]
[1770163627416,0.00551408,2231.7,2230.6,2.4674835]
[1770163627614,0.00551408,2231.7,2230.6,2.6919735]
[1770163633209,2.32188889,2231.7,2230.6,2.4674835]
[1770163633409,2.54627889,2231.7,2230.3,6.9534835]
[1770163634121,2.31637481,2231.6,2230.1,2.4674835]
[1770163634314,2.31637481,2231.4,2230.1,2.4674835]
[1770163634916,2.32188889,2231.7,2230.4,2.4674835]
[1770163635916,2.31637481,2231.5,2230.4,2.4674835]
[1770163636618,2.31637481,2231.4,2230.4,2.4674835]
[1770163640117,2.31637481,2231.3,2230.4,2.02985425]
[1770163640317,5.35762119,2231.5,2230.4,2.02985425]
[1770163640513,5.35762119,2231.6,2230.2,2.67216556]
[1770163640712,0.00551408,2231.7,2230.4,2.67216556]
[1770163641020,2.54886611,2231.7,2230.6,0.22449]
[1770163642219,2.76777203,2231.4,2230.2,2.67216556]
[1770163642423,2.54335203,2231.1,2230.1,2.48641707]
[1770163642619,7.90097322,2230.9,2229.8,2.48641707]
[1770163642819,2.54335203,2230.8,2229.5,2.48641707]
[1770163643118,2.54335203,2230.6,2229.3,2.67216556]
[1770163643324,2.54335203,2230.6,2229.2,2.49154578]
[1770163643325,2.54335203,2230.4,2229.2,2.49154578]
[1770163644222,7.90097322,2230.4,2229.2,2.49154578]
[1770163644414,2.54335203,2230.3,2229.2,2.49154578]
[1770163646019,2.54335203,2230.3,2229.2,0.00512871]
[1770163646527,2.54335203,2230.1,2229.2,0.00512871]
[1770163646821,2.54335203,2229.9,2228.3,2.48641707]
[1770163647018,5.81618517,2230.0,2228.3,2.48641707]
[1770163647019,2.54335203,2229.6,2228.3,2.48641707]
[1770163647522,2.54335203,2229.6,2228.4,0.22472]
[1770163647723,0.00573782,2229.6,2228.7,2.48641707]
[1770163648019,0.00573782,2229.6,2228.6,0.2247]
[1770163648020,2.54335203,2230.1,2229.0,2.48641707]
[1770163649018,2.54804672,2230.1,2229.0,2.48641707]
[1770163649216,2.54804672,2230.1,2228.7,2.48641707]
[1770163650417,2.77259672,2230.1,2228.7,2.48641707]
[1770163650617,2.54335203,2229.7,2228.4,0.00504919]
[1770163650816,2.65818517,2229.8,2227.5,2.48641707]
[1770163650817,2.54335203,2229.3,2227.5,2.48641707]
[1770163651720,2.54335203,2229.1,2227.5,2.49161982]
[1770163651929,2.54335203,2228.8,2227.5,2.49161982]
[1770163661230,2.54335203,2229.1,2227.7,2.48641707]
[1770163661426,2.54335203,2229.1,2227.9,2.48641707]
[1770163663233,2.54335203,2229.1,2227.6,2.48641707]
[1770163665835,2.54335203,2228.9,2227.6,2.48641707]
[1770163666137,2.76803203,2228.9,2227.5,0.00520275]
[1770163666526,0.22469,2228.7,2227.5,0.00520275]
[1770163666737,2.76805203,2228.6,2227.5,0.00520275]
[1770163667135,2.54335203,2228.2,2227.5,0.00520275]
[1770163667338,2.54792348,2228.2,2227.0,2.48641707]
[1770163668538,2.54792348,2228.2,2227.0,2.49188027]
[1770163670635,2.54792348,2228.2,2227.0,0.0054632]
[1770163671437,2.54792348,2228.2,2227.0,2.35599613]
[1770163673443,7.90554467,2228.2,2227.0,3.2e-06]
[1770163673739,2.54332504,2227.5,2226.4,2.35053293]
[1770163674341,5.58237119,2228.1,2226.4,2.57544293]
[1770163674538,2.54332504,2228.0,2226.7,2.35053293]
[1770163674744,2.54332504,2228.0,2226.8,2.35053293]
[1770163675245,0.00457145,2228.2,2226.8,2.35053293]
[1770163675447,2.50436954,2228.2,2226.8,2.35053293]
[1770163675647,2.50436954,2228.2,2226.8,2.57541293]
[1770163676147,2.49979809,2228.0,2226.8,2.35053293]
[1770163676350,2.49979809,2228.0,2226.5,2.46003823]
[1770163679546,2.49979809,2228.0,2226.9,2.46003823]
[1770163680242,0.00457145,2228.2,2227.3,2.46003823]
[1770163680550,2.49979809,2228.9,2227.6,2.68483823]
[1770163681644,2.50351105,2228.9,2227.6,2.46003823]
[1770163681843,2.49979809,2228.8,2227.3,2.46003823]
[1770163682042,2.49979809,2228.7,2227.3,2.46003823]
[1770163682549,2.49979809,2228.7,2227.6,2.46003823]
[1770163683545,2.49979809,2228.7,2227.6,5.26803823]
[1770163684046,2.49979809,2228.7,2227.7,2.46003823]
[1770163687444,5.36133415,2228.9,2227.7,2.46003823]
[1770163687746,0.00371296,2228.9,2227.8,2.46003823]
[1770163688550,0.00371296,2228.9,2227.8,2.68481823]
[1770163691651,7.85741928,2229.2,2228.0,2.46003823]
[1770163691849,2.49979809,2229.1,2228.0,2.46003823]
[1770163692552,2.50557195,2229.1,2228.0,2.46401793]
[1770163697653,2.50557195,2229.1,2228.1,2.46003823]
[1770163697853,0.22466,2229.0,2228.0,0.0039797]
[1770163698055,2.49979809,2228.9,2228.0,0.0039797]
[1770163698356,2.72447809,2228.8,2227.3,2.46003823]
[1770163698554,2.72447809,2228.8,2227.3,5.09403823]
[1770163698754,2.49979809,2228.6,2227.3,2.46003823]
[1770163698956,2.49979809,2228.6,2227.3,5.29303823]
[1770163699355,2.49979809,2228.6,2227.3,5.29837322]
[1770163700458,2.49979809,2228.6,2227.3,2.46537322]
[1770163701855,2.49979809,2228.6,2227.4,0.22482]
[1770163702060,2.35735882,2228.4,2227.3,0.00533499]
[1770163702258,2.35735882,2228.2,2227.3,0.00533499]
[1770163703362,2.35735882,2228.1,2227.3,0.00533499]
[1770163704059,2.35735882,2228.1,2226.8,2.34678193]
[1770163704855,2.35735882,2228.1,2227.0,2.34678193]
[1770163705162,2.35735882,2228.4,2227.0,2.57547385]
[1770163705355,12.44098001,2228.7,2227.2,2.34678193]
[1770163705555,4.492,2228.8,2227.5,5.24990311]
[1770163705761,2.35735882,2228.7,2227.6,2.34678193]
[1770163706159,2.35735882,2228.5,2227.0,2.6821531]
[1770163706363,2.35735882,2228.3,2227.1,2.34678193]
[1770163706656,2.35735882,2228.3,2227.0,0.00384192]
[1770163706864,5.35762119,2228.1,2227.0,2.35062385]
[1770163707161,2.35735882,2228.6,2227.4,2.34678193]
[1770163707361,2.35735882,2228.6,2227.6,2.34678193]
[1770163709562,5.35762119,2228.9,2227.8,2.34678193]
[1770163709563,2.35735882,2228.9,2227.8,2.34678193]
[1770163709856,2.35735882,2228.9,2227.8,2.57156193]
[1770163710063,0.00577386,2229.1,2228.1,2.34678193]
[1770163710260,0.00577386,2229.1,2228.3,2.34678193]
[1770163710958,4.492,2229.6,2228.4,2.34678193]
[1770163711160,2.35735882,2229.8,2228.5,2.57149193]
[1770163711359,2.35735882,2229.8,2228.6,2.34678193]
[1770163712060,2.36078702,2229.8,2228.6,2.35175348]
[1770163712765,2.35735882,2229.7,2228.6,4.98575348]
[1770163712959,2.35735882,2229.6,2228.6,0.00497155]
[1770163713358,2.35735882,2229.6,2228.6,2.35175348]
[1770163713866,2.36078702,2229.8,2228.6,2.35175348]
[1770163714066,2.35735882,2229.7,2228.6,2.35175348]
[1770163714267,2.35735882,2229.7,2228.6,5.19075348]
[1770163715165,2.35735882,2229.7,2228.6,2.35175348]
[1770163715368,7.71498001,2229.7,2228.6,0.00497155]
[1770163715567,2.35735882,2229.2,2228.2,4.491]
[1770163715769,2.35735882,2229.0,2228.2,4.491]
[1770163715970,2.35735882,2229.0,2228.2,6.83778193]
[1770163716665,2.35735882,2229.0,2228.2,6.84315784]
[1770163716862,2.35735882,2229.4,2228.3,2.34678193]
[1770163718375,4.491,2229.6,2228.3,2.57151193]
[1770163718376,6.84835882,2229.6,2228.3,2.57151193]
[1770163718666,2.35735882,2229.5,2228.4,4.98078193]
[1770163718865,2.35735882,2229.5,2228.4,2.34678193]
[1770163720574,2.35735882,2229.5,2228.2,0.00537591]
[1770163720775,2.35735882,2229.4,2228.2,0.00537591]
[1770163720974,2.35735882,2229.4,2228.2,2.35215784]
[1770163724480,2.35735882,2229.4,2228.4,2.34678193]
[1770163724778,2.58195882,2229.6,2228.2,2.35215784]
[1770163724971,2.35735882,2229.5,2228.2,2.35215784]
[1770163725675,2.35735882,2229.4,2228.2,2.35215784]
[1770163728781,2.35735882,2229.7,2228.4,2.34678193]
[1770163729782,2.35735882,2229.7,2228.6,2.34678193]
[1770163729987,0.0034282,2229.8,2228.8,2.34678193]
[1770163730286,0.00153901,2229.8,2228.9,2.34678193]